Cogmind - Beta 11 X9 @@@ ROGUE MODE // 2022.01.04 @ 19:07:27 // Winter2021/Sauler Player: Plexion Result: Destroyed by 8R-AWN with 8R-AWN's Boregun Performance ------------- Evolutions (0) 0 Regions Visited (3) 600 Robots Destroyed (16) 80 Value Destroyed (281) 281 Prototype IDs (24) 480 Alien Tech Used (0) 0 Bonus (300) 300 TOTAL SCORE: 1741 Bonus ------- Aligned with FarCom 300 Cogmind --------- Core Integrity 0/250 Matter 275/300 Energy 41/100 System Corruption 9% Temperature Cool (2) Movement Treading (160) Location -10/Exiles Parts ------- > --- POWER (1) -------- (None) > --- PROPULSION (2) --- Light Treads Light Treads > --- UTILITY (2) ------ Improved Heat Sink Large Storage Unit > --- WEAPON (2) ------- Latent Energy Streamer Light Assault Rifle > --- INVENTORY (15) --- Cooled Ion Engine Light Treads Wheel Wheel Armored Wheel Armored Wheel Armored Wheel Armored Wheel Small Storage Unit Assault Rifle Peak State ------------ > --- POWER ------------ Cooled Ion Engine > --- PROPULSION ------- Armored Wheel Armored Wheel > --- UTILITY ---------- Improved Heat Sink Large Storage Unit > --- WEAPON ----------- Medium Laser Latent Energy Streamer > --- INVENTORY -------- Cooled Ion Engine Light Treads Light Treads Light Treads Wheel Wheel Armored Wheel Armored Wheel Small Storage Unit Assault Rifle Light Assault Rifle [Rating: 23] Favorites ----------- Power Cooled Ion Engine Engine Cooled Ion Engine Propulsion Armored Wheel Treads Light Treads Wheel Armored Wheel Utility Large Storage Unit Device Improved Heat Sink Storage Large Storage Unit Processor Targeting Computer Weapon Medium Laser Energy Gun Medium Laser Energy Cannon Latent Energy Streamer Ballistic Gun Assault Rifle Build | -11 -10 -10 -10 ------- Run | Scr Mat Min Exi Slots Evolved . | . . . . Power . | . . . . Propulsion . | . . . . Utility . | . . . . Weapon . | . . . . Parts Attached 18 | 7 5 1 5 Power 3 | 2 1 . . Engine 3 | 2 1 . . Core . | . . . . Reactor . | . . . . Propulsion 6 | 2 2 . 2 Treads 2 | . . . 2 Leg . | . . . . Wheel 4 | 2 2 . . Hover . | . . . . Flight . | . . . . Utility 4 | 1 2 . 1 Device 1 | . . . 1 Storage 2 | 1 1 . . Processor 1 | . 1 . . Hackware . | . . . . Protection . | . . . . Artifact . | . . . . Weapon 5 | 2 . 1 2 Energy Gun 1 | 1 . . . Energy Cannon 1 | . . . 1 Ballistic Gun 3 | 1 . 1 1 Ballistic Cannon . | . . . . Launcher . | . . . . Special Weapon . | . . . . Impact Weapon . | . . . . Slashing Weapon . | . . . . Piercing Weapon . | . . . . Special Melee Weapon . | . . . . Unidentified Prototypes 1 | . 1 . . Parts Lost 4 | . . 1 3 Power 1 | . . . 1 Propulsion . | . . . . Utility 1 | . . . 1 Weapon 2 | . . 1 1 Highest Loss Streak 2 | . . 1 2 Average Slot Usage (%) 98 | . 95 99 99 Engine 13 | . 14 14 13 Treads 1 | . . . 2 Wheel 26 | . 28 28 25 Storage 14 | . 14 14 14 Processor 12 | . 10 14 12 Energy Gun 13 | . 14 14 12 Energy Cannon 1 | . . . 2 Ballistic Gun 13 | . 14 13 12 Naked Turns . | . . . . Heaviest Build 40 | 13 31 32 40 Greatest Support 40 | 26 28 24 40 Greatest Overweight (x) 1 | . 1 1 1 Average Overweight (x) . | . . 1 . Largest Inventory Capacity 15 | 8 15 15 15 Average Capacity 13 | 6 12 15 15 Most Carried 15 | 6 11 11 15 Average Carried 10 | 3 7 10 12 Final Capacity 15 | 8 15 15 15 Final Carried 11 | 6 11 11 10 Class Distribution -------------------- 100% | Mutant Dominant Class ---------------- Mutant | -10/Materials Mutant | -10/Mines Mutant | -10/Exiles Resources | -11 -10 -10 -10 ----------- Run | Scr Mat Min Exi Matter Collected 422 | 259 94 59 10 Remotely . | . . . . Salvage Created 416 | 16 213 170 17 Parts 34 | 5 16 13 . Haulers Intercepted 1 | . 1 . . Recyclers Shooed . | . . . . Parts Field Recycled . | . . . . Retrieved Matter . | . . . . Parts Self-Destructed . | . . . . Prevented . | . . . . Kills | -11 -10 -10 -10 ------- Run | Scr Mat Min Exi Combat Hostiles Destroyed 12 | . 6 5 1 Guns 8 | . 3 5 . AOE 4 | . 3 . 1 Classes Destroyed 6 | 1 3 1 1 Builder 1 | . . 1 . Tunneler 3 | 1 . 2 . Hauler 1 | . 1 . . Swarmer 6 | . 3 3 . Grunt 5 | . 3 2 . Assembled 1 | . . . 1 Best Kill Streak 4 | 1 3 4 1 Combat Bots Only 3 | . 3 3 1 Max Kills in Single Turn 3 | 1 3 1 1 Gunslinging . | . . . . Exploded 3 | . 3 . 1 Melee . | . . . . Uniques/NPCs Destroyed . | . . . . Combat | -11 -10 -10 -10 -------- Run | Scr Mat Min Exi Damage Taken 962 | . 203 322 437 Core 264 | . 68 47 149 Absorbed by Shields . | . . . . Core Remaining (%) 100 | 100 . . . Volleys Fired 65 | 1 33 22 9 Largest 2 | 2 2 2 2 Hottest 110 | 70 70 70 110 Shots Fired 121 | 2 66 43 10 Gun 117 | 2 66 43 6 Cannon 4 | . . . 4 Launcher . | . . . . Special . | . . . . Kinetic 55 | 1 33 21 . Thermal 62 | 1 33 22 6 Explosive . | . . . . Electromagnetic 4 | . . . 4 Robot Hit Streak 14 | 1 5 14 1 Robot Miss Streak 5 | . 4 5 3 Penetration Max . | . . . . Secondary Targets 1 | . . 1 . Max Gunslinging Chain 1 | . . 1 . Shots Hit Robots 67 | 1 35 29 2 Core Hits 29 | 1 14 11 3 Critical Kills . | . . . . Critical Parts Destroyed . | . . . . Critical Strikes 2 | . 2 . . Burn 2 | . 2 . . Melee Attacks . | . . . . Impact . | . . . . Slashing . | . . . . Piercing . | . . . . Sneak Attacks . | . . . . Combat Hostiles . | . . . . Follow-up Attacks . | . . . . Damage Inflicted 893 | 13 476 343 61 Guns 738 | 13 358 343 24 Cannons . | . . . . Explosions 155 | . 118 . 37 Melee . | . . . . Ramming . | . . . . Kinetic 275 | . 134 141 . Thermal 463 | 13 224 202 24 Explosive . | . . . . Electromagnetic 155 | . 118 . 37 Impact . | . . . . Slashing . | . . . . Piercing . | . . . . Highest Corruption 9 | . . . 9 Average Corruption 4 | . . . 4 Corruption Purged . | . . . . Effects 2 | . . . 2 Message Errors 1 | . . . 1 Heat Flow Errors 1 | . . . 1 Overload Shots . | . . . . Overflow Damage . | . . . . Projectiles . | . . . . Explosions . | . . . . Melee . | . . . . Knockbacks . | . . . . Impact . | . . . . Kinetic . | . . . . Secondary . | . . . . Self-Inflicted Damage 29 | . 29 . . Shots 1 | . 1 . . Rammed . | . . . . Targets Rammed . | . . . . Kicked . | . . . . Crushed . | . . . . Highest Temperature 242 | 30 242 179 170 Average Temperature 64 | 18 71 62 43 Received Heat Transfer 234 | . 84 150 . Siege Activations . | . . . . Robots Corrupted . | . . . . Combat Hostiles . | . . . . Parts Fried . | . . . . Impact Corruptions . | . . . . Robots Melted . | . . . . Combat Hostiles . | . . . . Parts Melted 1 | . 1 . . Heat Transferred 1517 | 37 814 592 74 Parts Sabotaged . | . . . . Parts Stolen . | . . . . Parts Stripped . | . . . . Power Chain Reactions . | . . . . Missiles Intercepted . | . . . . Latent Energy Used 532 | . . . 532 LE Corruption 9 | . . . 9 Alert | -11 -10 -10 -10 ------- Run | Scr Mat Min Exi Peak Influence 213 | 5 213 125 . Initial 7 | . 3 7 . Average 75 | . 108 53 . Maximum Alert Level 1 | . 1 . . Low Security (%) 91 | 100 81 100 . Level 1 8 | . 18 . . Level 2 . | . . . . Level 3 . | . . . . Level 4 . | . . . . Level 5 . | . . . . High Security . | . . . . Max Security . | . . . . Squads Dispatched 4 | . 4 . . Investigation 1 | . 1 . . Extermination . | . . . . Reinforcement 3 | . 3 . . Assault . | . . . . Garrison . | . . . . Intercept . | . . . . Construction Impeded . | . . . . Haulers Reinforced . | . . . . Active Scanning Responses . | . . . . Cargo Convoy Interrupts . | . . . . Stealth | -11 -10 -10 -10 --------- Run | Scr Mat Min Exi Distress Signals . | . . . . Communications Jammed . | . . . . Distress Signals . | . . . . Times Spotted 23 | . 13 5 5 Peak Tracking Total 10 | . 4 3 10 Tactical Retreats 1 | . . . 1 Traps | -11 -10 -10 -10 ------- Run | Scr Mat Min Exi Traps Triggered 1 | . 1 . . Indirectly . | . . . . Trap Hack Attempts . | . . . . Triggered . | . . . . Disarmed . | . . . . Reprogrammed . | . . . . Reused . | . . . . Traps Extracted . | . . . . Installed . | . . . . Triggered . | . . . . Exploded 3 | . . . 3 Machines | -11 -10 -10 -10 ---------- Run | Scr Mat Min Exi Machines Disabled 6 | . 1 . 5 Max in Single Turn 3 | . 1 . 3 Machines Sabotaged . | . . . . Garrisons Compromised . | . . . . Overloaded Fab Kills . | . . . . Hacking | -11 -10 -10 -10 --------- Run | Scr Mat Min Exi Machines Accessed 2 | . . . 2 Terminals . | . . . . Fabricators . | . . . . Repair Stations . | . . . . Recycling Units . | . . . . Scanalyzers . | . . . . Garrison Access . | . . . . Total Hacks 2 | . . . 2 Successful 2 | . . . 2 Failed . | . . . . Catastrophic . | . . . . Database Lockouts . | . . . . Manual 1 | . . . 1 Terminals . | . . . . Fabricators . | . . . . Repair Stations . | . . . . Recycling Units . | . . . . Scanalyzers . | . . . . Garrison Access . | . . . . Terminal Hacks 2 | . . . 2 Record 1 | . . . 1 EX-Prototype ID Bank 1 | . . . 1 Fabricator Hacks . | . . . . Repair Station Hacks . | . . . . Recycling Unit Hacks . | . . . . Scanalyzer . | . . . . Garrison Access Hacks . | . . . . Unauthorized Hacks . | . . . . Terminals . | . . . . Fabricators . | . . . . Repair Stations . | . . . . Recycling Units . | . . . . Scanalyzers . | . . . . Garrison Access . | . . . . Data Cores Recovered . | . . . . Used . | . . . . Hacking Detections . | . . . . Full Trace Events . | . . . . Feedback Events . | . . . . Feedback Blocked . | . . . . Robot Schematics Acquired . | . . . . Robots Built . | . . . . Authchips . | . . . . Time . | . . . . Total Robot Build Rating . | . . . . Part Schematics Acquired . | . . . . Parts Built . | . . . . Authchips . | . . . . Time . | . . . . Total Part Build Rating . | . . . . Parts Repaired . | . . . . Time . | . . . . Parts Recycled . | . . . . Recycled Matter . | . . . . Retrieved Matter . | . . . . Retrieved Components . | . . . . Parts Scanalyzed . | . . . . Part Schematics Acquired . | . . . . Parts Damaged . | . . . . Bothacking | -11 -10 -10 -10 ------------ Run | Scr Mat Min Exi Used RIF Installer . | . . . . Robots Hacked . | . . . . Non-combat . | . . . . Combat . | . . . . Robot Hacks Applied . | . . . . Relay Couplers Released . | . . . . Fabnet Peak Effective % . | . . . . Robots Rewired . | . . . . Allies Hacked . | . . . . Hacks Repelled . | . . . . Allies | -11 -10 -10 -10 -------- Run | Scr Mat Min Exi Total Allies 3 | . . 3 . Largest Group 3 | . . 3 3 Highest-Rated Group 40 | . . 40 40 Highest-Rated Ally 16 | . . 16 16 Total Orders 1 | . . . 1 STAY 1 | . . . 1 Ally Attacks 12 | . . . 12 Total Damage 73 | . . . 73 Kills 2 | . . . 2 Allies Corrupted . | . . . . Allies Melted . | . . . . Intel | -11 -10 -10 -10 ------- Run | Scr Mat Min Exi Robot Analysis Total . | . . . . Derelict Logs Recovered 1 | . . 1 . Drone Launches . | . . . . Drone Recoveries . | . . . . Exploration | -11 -10 -10 -10 ------------- Run | Scr Mat Min Exi Turns Passed 1579 | 59 467 483 570 Spaces Moved 1189 | 46 362 316 465 Core 2 | 2 . . . Treads 18 | . . . 18 Legs . | . . . . Wheels 1169 | 44 362 316 447 Hover . | . . . . Flight . | . . . . Fastest Speed 50 | 50 90 105 105 Average Speed 103 | 88 98 105 107 Slowest Speed 160 | 90 105 105 160 Overloaded Moves . | . . . . Propulsion Burnouts . | . . . . Robots Hopped . | . . . . Cave-ins Triggered . | . . . . Exploration Rate (%) 45 | 3 57 56 67 Regions Visited 3 Branch Regions 2 Pre-discovered Areas 2 | . . 1 1 Known Exits Taken . | . . . . Unknown Exits Taken 3 | 1 1 1 . Scrap Searched 1 | . . 1 . Spaces Dug . | . . . . Terrain Destroyed 30 | . . . 30 Melee . | . . . . Projectile . | . . . . AOE 30 | . . . 30 Terrain Rammed . | . . . . Walls Destroyed . | . . . . Machines Disabled . | . . . . Actions | -11 -10 -10 -10 --------- Run | Scr Mat Min Exi Total 1425 | 60 412 425 528 Wait 131 | . 3 86 42 Move 1186 | 45 361 315 465 Hop . | . . . . Pick Up 17 | 7 5 1 4 Fast Attach 6 | 4 2 . . Attach 5 | 2 . 1 2 Detach 1 | . 1 . . Swap 7 | 1 3 . 3 Drop 7 | . 4 . 3 Fire 65 | 1 33 22 9 Melee . | . . . . Ram . | . . . . Kick . | . . . . Crush . | . . . . Escape Stasis . | . . . . Rewire . | . . . . Trap . | . . . . Miscellaneous . | . . . . Route ------- -11/Scrapyard -10/Materials (discovered 3 exits: [*Mat x2] / [*Min]) -10/Mines (discovered 2 exits: [*Mat] / *Exi) -10/Exiles History --------- Turn | Location | Event 6 | -11/Scrapyard | Discovered new exit (range 16) 60 | -11/Scrapyard | Entered Materials 233 | -10/Materials | Discovered new exit (range 6) 313 | -10/Materials | Build established: Mutant 375 | -10/Materials | Discovered new exit (range 7) 522 | -10/Materials | Discovered new exit (range 6) 527 | -10/Materials | Entered Mines 740 | -10/Mines | Learned location of Mines (-9) 788 | -10/Mines | Discovered new exit (range 8) 810 | -10/Mines | Discovered new exit (range 16) 965 | -10/Mines | Assisted by bots powering up and referring to "LRC-V3" 996 | -10/Mines | Deemed a non-threat by the Exiles lab entrance 1010 | -10/Mines | Entered Exiles 1010 | -10/Exiles | Accompanied by 3 allies 1036 | -10/Exiles | Met 8R-AWN 1052 | -10/Exiles | Met EX-HEX 1098 | -10/Exiles | Met EX-DEC 1115 | -10/Exiles | Learned location of Zion (-7) 1166 | -10/Exiles | Met EX-BIN 1186 | -10/Exiles | Aligned with FarCom system 1187 | -10/Exiles | Given EX-Vault access code 1215 | -10/Exiles | Opened EX-Vault 1225 | -10/Exiles | Found Latent Energy Streamer 1248 | -10/Exiles | Warned to stay clear of 0b10 Research branches 1464 | -10/Exiles | Attacked by the Exiles 1541 | -10/Exiles | Core integrity fell below 50% 1570 | -10/Exiles | Core integrity fell below 20% 1580 | -10/Exiles | Destroyed by 8R-AWN with 8R-AWN's Boregun Last Messages --------------- 01569_ Penetrated by HV Slug. 01569_ HV Slug penetrates Earth. 01571_ Penetrated by HV Slug. 01571_ HV Slug penetrates Wall. 01574_ Penetrated by HV Slug. 01574_ HV Slug penetrates Earth. 01574_ Penetrated by HV Slug. 01574_ HV Slug penetrates Earth. 01576_ Penetrated by HV Slug. 01576_ HV Slug penetrates Earth. 01576_ HV Slug penetrates Wall. 01578_ Penetrated by HV Slug. 01578_ Critical hit (Destroy). 01578_ Cld. Ion Engine destroyed. 01578_ HV Slug penetrates Earth. 01578_ Penetrated by HV Slug. 01578_ HV Slug penetrates Earth. 01580_ Penetrated by HV Slug. 01580_ HV Slug penetrates Wall. 01580_ Penetrated by HV Slug. Map ----- +----------------------------------------------------+ | ?????????????????????????????????????????????????? | | ?????????????????????????????????????????????????? | | ?????????????????????????????????????????????????? | | ?????????????????????????????????????????????????? | | ?????????????????????????????????????????????????? | | ?????????????????????????????????????????????????? | | ?????????????????????????????????????????????????? | | ?????????????????????????????????????????????????? | | ?????????????????????????????????????????????????? | | ?????????????????????????????????????????????????? | | ?????????????????????????????????????????????????? | | ????????????????????????????????????????????????## | | ???????????????????????????????????????????????""" | | ???????????????????????????????????????????????""" | | ??????????????????????????????????????????????#""X | | ??????????????????????????????????????????????#" | | ??????????????????????????????????????????????#" | | ??????????????????????????????????????????????#""" | | ?????????????????????###??????????????????????##"# | | ?????????????????????# #?????????????????????????? | | ?????????????????????# #?????????????????????????? | | ?????????????????????# ###???????????????????????? | | ?????? ??????????????#;;;###?????????????????????? | | ?????? ######??????##!!! "#?????????????????????? | | ????? #""#?????#; "#?????????????????????? | | ????? ?????#; @"#?????????????????????? | | ?????" #????## "#?????????????????????? | | ?????" #####" "#????????????? ???????? | | ??????# ## "#????????????" ""?????? | | ???????# # ###????????????" ????? | | ??????????# #?????????????"" ????? | | ???????????### g##????????????"" "#???? | | ?????????????### % #???????????? ""????? | | ????????#######" #####?????????" "?????? | | ???????# !!"""" ""#?????????# #?????? | | ???????#! ; "#####???### ###?### | | ???????#! % #####X# #"###"" | | ???????#! ## % """""" | | ???????# !""""""#### ; " "" """ | | ???????#########???# ;;"" " " | | ???????????????????? "#" = | | ???????????????????????????### =% | | ?????????????????????????????## * | | ??????????????????????????????## | | ???????????????????????????????## | | ????????????????????????????????#"" | | ???????????????????????????????##" | | ???????????????????????????????#"" "" | | ???????????????????????????????#""" """# | | ??????????????????????????????#""" """## | +----------------------------------------------------+ Best States ------------- Heat Dissipation 39 Energy Generation 14 Energy Capacity 280 Matter Stores 300 Matter Capacity 300 Sight Range 16 Terrain Scan Density 10 Evasion (%) 42 Targeting Accuracy 5 Recoil Reduction 2 Item Schematics ----------------- None Robot Schematics ------------------ None Fabricated ------------ Nothing Alien Tech Used ----------------- None Achievements -------------- None Challenges ------------ None Game ------ Seed SurgeAssembledAutocannon Manual? 0 Play Time 00:12:45 Cumulative 239.8 hours Start 2022.01.04 @ 18:58:04 End 2022.01.04 @ 19:07:27 Sessions 1 Manual Loads 0 Difficulty Rogue Special Mode Winter2021/Sauler Game No. 327 Rogue 240 Adventurer 87 Explorer 0 Win Type - Total 5 Types 3/0/1/1/0/0/0/0/0 Lore% 70 Gallery% 79 Achievement% 67 Wizard Run 0 Options --------- ASCII 0 Keyboard 1 Movement Numpad Keybinds 0 Fullscreen 1 Font 18/Smallcaps Map View 76x50 Tactical HUD 1 Map Filters NONE Filters NONE Steam 1 RUN: 04e881d5-4498-4be6-b328-6ee04817af29